[Event "Titled Tuesday Blitz May 10 Early 2022"]
[White "Steinberg, Nitzan"]
[Black "Le, Tuan Minh"]
[WhiteFideId "2801795"]
[BlackFideId "12401153"]
[WhiteElo "2471"]
[BlackElo "2450"]
[Result "1-0"]
[Round "10"]
[TimeControl "180+1"]
[Date "2022.05.10"]
[WhiteClock "0:00:05"]
[BlackClock "0:00:01"]

1. e4 {[%clk 0:03:00]}  c5 {[%clk 0:03:00]} 2. Nf3 {[%clk 0:03:01]}  Nf6 {[%clk 0:03:00]} 3. Nc3 {[%clk 0:02:58]}  d5 {[%clk 0:03:01]} 4. exd5 {[%clk 0:02:55]}  Nxd5 {[%clk 0:03:02]} 5. Bb5+ {[%clk 0:02:55]}  Bd7 {[%clk 0:03:02]} 6. Bxd7+ {[%clk 0:02:52]}  Qxd7 {[%clk 0:03:03]} 7. O-O {[%clk 0:02:52]}  Nc6 {[%clk 0:03:03]} 8. Ne4 {[%clk 0:02:43]}  e6 {[%clk 0:03:03]} 9. d4 {[%clk 0:02:41]}  cxd4 {[%clk 0:03:02]} 10. Nxd4 {[%clk 0:02:41]}  Rd8 {[%clk 0:03:02]} 11. c3 {[%clk 0:02:33]}  e5 {[%clk 0:02:29]} 12. Nxc6 {[%clk 0:02:31]}  Qxc6 {[%clk 0:02:29]} 13. Qh5 {[%clk 0:02:26]}  Qe6 {[%clk 0:02:23]} 14. Ng5 {[%clk 0:02:22]}  Qg6 {[%clk 0:02:16]} 15. Qe2 {[%clk 0:02:22]}  Be7 {[%clk 0:02:03]} 16. Nf3 {[%clk 0:02:06]}  f6 {[%clk 0:01:28]} 17. Qb5+ {[%clk 0:02:05]}  Rd7 {[%clk 0:01:29]} 18. c4 {[%clk 0:02:03]}  a6 {[%clk 0:01:14]} 19. Qa4 {[%clk 0:02:03]}  Nb4 {[%clk 0:00:58]} 20. Be3 {[%clk 0:01:14]}  Qe4 {[%clk 0:00:41]} 21. c5 {[%clk 0:00:57]}  a5 {[%clk 0:00:32]} 22. a3 {[%clk 0:00:55]}  Qc6 {[%clk 0:00:31]} 23. axb4 {[%clk 0:00:55]}  axb4 {[%clk 0:00:24]} 24. Qxc6 {[%clk 0:00:53]}  bxc6 {[%clk 0:00:25]} 25. Ra6 {[%clk 0:00:52]}  Kf7 {[%clk 0:00:24]} 26. Rxc6 {[%clk 0:00:50]}  Rd3 {[%clk 0:00:19]} 27. Rb6 {[%clk 0:00:48]}  Rb3 {[%clk 0:00:19]} 28. Rb1 {[%clk 0:00:41]}  Ra8 {[%clk 0:00:17]} 29. Nd2 {[%clk 0:00:38]}  Rd3 {[%clk 0:00:13]} 30. g4 {[%clk 0:00:33]}  Bxc5 {[%clk 0:00:11]} 31. Bxc5 {[%clk 0:00:33]}  Rxd2 {[%clk 0:00:11]} 32. Be3 {[%clk 0:00:31]}  Rc2 {[%clk 0:00:11]} 33. Rxb4 {[%clk 0:00:31]}  Kg6 {[%clk 0:00:12]} 34. b3 {[%clk 0:00:22]}  h5 {[%clk 0:00:11]} 35. h3 {[%clk 0:00:21]}  Raa2 {[%clk 0:00:07]} 36. Rc4 {[%clk 0:00:21]}  Re2 {[%clk 0:00:07]} 37. b4 {[%clk 0:00:20]}  hxg4 {[%clk 0:00:08]} 38. hxg4 {[%clk 0:00:20]}  Rab2 {[%clk 0:00:07]} 39. Rxb2 {[%clk 0:00:20]}  Rxb2 {[%clk 0:00:08]} 40. Kg2 {[%clk 0:00:20]}  Kf7 {[%clk 0:00:08]} 41. Rc7+ {[%clk 0:00:20]}  Ke6 {[%clk 0:00:09]} 42. Rb7 {[%clk 0:00:18]}  g6 {[%clk 0:00:09]} 43. b5 {[%clk 0:00:18]}  f5 {[%clk 0:00:09]} 44. gxf5+ {[%clk 0:00:15]}  gxf5 {[%clk 0:00:10]} 45. Ba7 {[%clk 0:00:15]}  f4 {[%clk 0:00:09]} 46. Rb8 {[%clk 0:00:13]}  e4 {[%clk 0:00:09]} 47. Re8+ {[%clk 0:00:09]}  Kf5 {[%clk 0:00:08]} 48. b6 {[%clk 0:00:06]}  e3 {[%clk 0:00:08]} 49. Re7 {[%clk 0:00:05]}  Rxf2+ {[%clk 0:00:07]} 50. Kg1 {[%clk 0:00:06]}  Rb2 {[%clk 0:00:03]} 51. b7 {[%clk 0:00:06]}  Rb1+ {[%clk 0:00:04]} 52. Kg2 {[%clk 0:00:06]}  Rb2+ {[%clk 0:00:05]} 53. Kh3 {[%clk 0:00:06]}  Rxb7 {[%clk 0:00:02]} 54. Rxb7 {[%clk 0:00:06]}  Ke4 {[%clk 0:00:03]} 55. Kg4 {[%clk 0:00:05]}  f3 {[%clk 0:00:01]} 56. Re7+ {[%clk 0:00:05]} 1-0


[Site "https://www.chess.com"]

[Event "Titled Tuesday Blitz May 10 Early 2022"]
[White "Stoleriu, George"]
[Black "Maksimovic, Bojan"]
[WhiteFideId "1227505"]
[BlackFideId "14408120"]
[WhiteElo "2194"]
[BlackElo "2448"]
[Result "1/2-1/2"]
[Round "10"]
[TimeControl "180+1"]
[Date "2022.05.10"]
[WhiteClock "0:00:06"]
[BlackClock "0:00:05"]

1. e4 {[%clk 0:03:00]}  c5 {[%clk 0:02:59]} 2. Nf3 {[%clk 0:03:01]}  Nc6 {[%clk 0:03:00]} 3. Bb5 {[%clk 0:03:00]}  g6 {[%clk 0:03:00]} 4. Bxc6 {[%clk 0:03:01]}  dxc6 {[%clk 0:03:00]} 5. d3 {[%clk 0:03:01]}  Bg7 {[%clk 0:03:00]} 6. h3 {[%clk 0:03:01]}  Nf6 {[%clk 0:03:01]} 7. Nc3 {[%clk 0:03:01]}  Nd7 {[%clk 0:03:02]} 8. Be3 {[%clk 0:03:02]}  e5 {[%clk 0:03:02]} 9. Qd2 {[%clk 0:03:02]}  h6 {[%clk 0:03:03]} 10. O-O {[%clk 0:03:02]}  Qe7 {[%clk 0:03:03]} 11. a4 {[%clk 0:02:46]}  Nf8 {[%clk 0:03:01]} 12. a5 {[%clk 0:02:39]}  Ne6 {[%clk 0:03:02]} 13. Na4 {[%clk 0:02:39]}  f5 {[%clk 0:02:57]} 14. exf5 {[%clk 0:02:36]}  gxf5 {[%clk 0:02:58]} 15. Qe2 {[%clk 0:02:36]}  O-O {[%clk 0:02:16]} 16. Bd2 {[%clk 0:02:28]}  Nd4 {[%clk 0:02:10]} 17. Nxd4 {[%clk 0:02:24]}  cxd4 {[%clk 0:02:11]} 18. Rfe1 {[%clk 0:02:19]}  f4 {[%clk 0:01:54]} 19. f3 {[%clk 0:02:17]}  Qg5 {[%clk 0:01:52]} 20. Kh1 {[%clk 0:02:14]}  Qg6 {[%clk 0:01:32]} 21. Nc5 {[%clk 0:02:09]}  Rf7 {[%clk 0:01:32]} 22. c3 {[%clk 0:02:06]}  Bf5 {[%clk 0:01:13]} 23. Ne4 {[%clk 0:02:00]}  Rd8 {[%clk 0:01:09]} 24. cxd4 {[%clk 0:01:56]}  Rxd4 {[%clk 0:01:10]} 25. Bc3 {[%clk 0:01:55]}  Rd5 {[%clk 0:01:09]} 26. Ra4 {[%clk 0:01:38]}  Rfd7 {[%clk 0:01:09]} 27. Rb4 {[%clk 0:01:36]}  Bf8 {[%clk 0:01:08]} 28. Rb3 {[%clk 0:01:35]}  Rxd3 {[%clk 0:01:05]} 29. Nc5 {[%clk 0:01:34]}  Re3 {[%clk 0:00:51]} 30. Qxe3 {[%clk 0:01:02]}  fxe3 {[%clk 0:00:50]} 31. Nxd7 {[%clk 0:01:03]}  Bxd7 {[%clk 0:00:44]} 32. Rxb7 {[%clk 0:01:02]}  Qd3 {[%clk 0:00:36]} 33. Rxa7 {[%clk 0:01:00]}  Bc5 {[%clk 0:00:37]} 34. Ra8+ {[%clk 0:01:00]}  Kf7 {[%clk 0:00:37]} 35. a6 {[%clk 0:00:56]}  e4 {[%clk 0:00:15]} 36. fxe4 {[%clk 0:00:32]}  e2 {[%clk 0:00:08]} 37. a7 {[%clk 0:00:24]}  Bxa7 {[%clk 0:00:06]} 38. Rxa7 {[%clk 0:00:23]}  Kg6 {[%clk 0:00:05]} 39. Kh2 {[%clk 0:00:19]}  h5 {[%clk 0:00:05]} 40. Rxd7 {[%clk 0:00:16]}  Qxd7 {[%clk 0:00:05]} 41. Rxe2 {[%clk 0:00:17]}  Kf7 {[%clk 0:00:04]} 42. Rf2+ {[%clk 0:00:17]}  Ke6 {[%clk 0:00:04]} 43. Rf6+ {[%clk 0:00:18]}  Ke7 {[%clk 0:00:04]} 44. Rh6 {[%clk 0:00:18]}  Qc7+ {[%clk 0:00:05]} 45. e5 {[%clk 0:00:17]}  Qb6 {[%clk 0:00:04]} 46. Rxh5 {[%clk 0:00:16]}  Qe3 {[%clk 0:00:04]} 47. Rh4 {[%clk 0:00:15]}  Qf2 {[%clk 0:00:04]} 48. Rg4 {[%clk 0:00:15]}  Ke6 {[%clk 0:00:04]} 49. Rg6+ {[%clk 0:00:16]}  Ke7 {[%clk 0:00:04]} 50. Rg4 {[%clk 0:00:14]}  Ke6 {[%clk 0:00:04]} 51. Rg6+ {[%clk 0:00:13]}  Ke7 {[%clk 0:00:05]} 52. Rf6 {[%clk 0:00:08]}  Qe3 {[%clk 0:00:04]} 53. Rf3 {[%clk 0:00:06]}  Qe4 {[%clk 0:00:04]} 54. Kh1 {[%clk 0:00:04]}  Qb1+ {[%clk 0:00:04]} 55. Kh2 {[%clk 0:00:05]}  Qe4 {[%clk 0:00:05]} 56. Kh1 {[%clk 0:00:05]}  Qb1+ {[%clk 0:00:05]} 57. Kh2 {[%clk 0:00:06]}  Qe4 {[%clk 0:00:05]} 1/2-1/2


[Site "https://www.chess.com"]

[Event "Titled Tuesday Blitz May 10 Early 2022"]
[White "Tania, Sachdev"]
[Black "Buscar, Michael"]
[WhiteFideId "5007844"]
[BlackFideId "2603616"]
[WhiteElo "2280"]
[BlackElo "2010"]
[Result "1-0"]
[Round "10"]
[TimeControl "180+1"]
[Date "2022.05.11"]
[WhiteClock "0:00:23"]
[BlackClock "0:00:10"]

1. d4 {[%clk 0:03:00]}  d5 {[%clk 0:02:59]} 2. c4 {[%clk 0:03:01]}  e6 {[%clk 0:02:59]} 3. Nf3 {[%clk 0:03:01]}  Nf6 {[%clk 0:02:57]} 4. Nc3 {[%clk 0:03:01]}  a6 {[%clk 0:02:57]} 5. cxd5 {[%clk 0:02:57]}  exd5 {[%clk 0:02:57]} 6. Qb3 {[%clk 0:02:58]}  Be7 {[%clk 0:02:50]} 7. Bg5 {[%clk 0:02:53]}  c6 {[%clk 0:02:49]} 8. e3 {[%clk 0:02:52]}  Bf5 {[%clk 0:02:47]} 9. Qxb7 {[%clk 0:02:45]}  Nbd7 {[%clk 0:02:47]} 10. Qxc6 {[%clk 0:02:45]}  O-O {[%clk 0:02:37]} 11. Be2 {[%clk 0:02:42]}  Qb8 {[%clk 0:02:29]} 12. O-O {[%clk 0:02:40]}  Rc8 {[%clk 0:02:24]} 13. Nxd5 {[%clk 0:02:13]}  Rxc6 {[%clk 0:02:16]} 14. Nxe7+ {[%clk 0:02:13]}  Kf8 {[%clk 0:02:10]} 15. Nxc6 {[%clk 0:02:14]}  Qxb2 {[%clk 0:02:07]} 16. Bc4 {[%clk 0:02:07]}  Rc8 {[%clk 0:02:03]} 17. Nce5 {[%clk 0:02:06]}  h6 {[%clk 0:01:55]} 18. Bxf6 {[%clk 0:01:59]}  Nxf6 {[%clk 0:01:49]} 19. Bxf7 {[%clk 0:01:57]}  a5 {[%clk 0:01:40]} 20. Bb3 {[%clk 0:01:47]}  Qa3 {[%clk 0:01:28]} 21. Nh4 {[%clk 0:01:41]}  Be4 {[%clk 0:01:16]} 22. Nhg6+ {[%clk 0:01:31]}  Bxg6 {[%clk 0:01:12]} 23. Nxg6+ {[%clk 0:01:31]}  Ke8 {[%clk 0:01:12]} 24. Rab1 {[%clk 0:01:26]}  Ne4 {[%clk 0:01:06]} 25. Be6 {[%clk 0:01:22]}  Rd8 {[%clk 0:00:56]} 26. Rb7 {[%clk 0:01:16]}  Rd6 {[%clk 0:00:47]} 27. d5 {[%clk 0:00:50]}  Nc5 {[%clk 0:00:42]} 28. Bf7+ {[%clk 0:00:38]}  Kd8 {[%clk 0:00:39]} 29. Ra7 {[%clk 0:00:38]}  Qxa2 {[%clk 0:00:33]} 30. Ne5 {[%clk 0:00:30]}  a4 {[%clk 0:00:22]} 31. h3 {[%clk 0:00:24]}  a3 {[%clk 0:00:19]} 32. Ra8+ {[%clk 0:00:23]}  Kc7 {[%clk 0:00:19]} 33. Rc1 {[%clk 0:00:23]}  Kb6 {[%clk 0:00:18]} 34. Rb8+ {[%clk 0:00:22]}  Nb7 {[%clk 0:00:18]} 35. Nc4+ {[%clk 0:00:20]}  Ka7 {[%clk 0:00:16]} 36. Rxb7+ {[%clk 0:00:20]}  Kxb7 {[%clk 0:00:16]} 37. Nxd6+ {[%clk 0:00:21]}  Kb6 {[%clk 0:00:16]} 38. Nc4+ {[%clk 0:00:20]}  Kc7 {[%clk 0:00:14]} 39. d6+ {[%clk 0:00:20]}  Kd7 {[%clk 0:00:14]} 40. Ne5+ {[%clk 0:00:21]}  Kxd6 {[%clk 0:00:14]} 41. Bxa2 {[%clk 0:00:22]}  Kxe5 {[%clk 0:00:14]} 42. Rc3 {[%clk 0:00:23]}  Ke4 {[%clk 0:00:14]} 43. Rxa3 {[%clk 0:00:23]}  Kf5 {[%clk 0:00:14]} 44. Bb1+ {[%clk 0:00:24]}  Kg5 {[%clk 0:00:14]} 45. Ra6 {[%clk 0:00:24]}  Kh5 {[%clk 0:00:14]} 46. g3 {[%clk 0:00:23]}  g5 {[%clk 0:00:10]} 47. Bg6# {[%clk 0:00:23]} 1-0


[Site "https://www.chess.com"]

[Event "Titled Tuesday Blitz May 10 Early 2022"]
[White "Tomaszewski, Kacper"]
[Black "Shtyka, Sergey"]
[WhiteFideId "1127373"]
[BlackFideId "4138465"]
[WhiteElo "2153"]
[BlackElo "2014"]
[Result "1-0"]
[Round "10"]
[TimeControl "180+1"]
[Date "2022.05.11"]
[WhiteClock "0:00:07"]
[BlackClock "0:00:03"]

1. Nf3 {[%clk 0:03:00]}  c5 {[%clk 0:02:48]} 2. e4 {[%clk 0:03:00]}  d6 {[%clk 0:02:47]} 3. Bb5+ {[%clk 0:02:56]}  Nd7 {[%clk 0:02:46]} 4. O-O {[%clk 0:02:55]}  a6 {[%clk 0:02:45]} 5. Bd3 {[%clk 0:02:55]}  e5 {[%clk 0:02:42]} 6. c3 {[%clk 0:02:52]}  Be7 {[%clk 0:02:41]} 7. Bc2 {[%clk 0:02:50]}  Ngf6 {[%clk 0:02:41]} 8. d4 {[%clk 0:02:49]}  cxd4 {[%clk 0:02:41]} 9. cxd4 {[%clk 0:02:49]}  O-O {[%clk 0:02:41]} 10. Nc3 {[%clk 0:02:49]}  b5 {[%clk 0:02:38]} 11. a3 {[%clk 0:02:30]}  Bb7 {[%clk 0:02:37]} 12. d5 {[%clk 0:02:30]}  Rc8 {[%clk 0:02:35]} 13. Bd2 {[%clk 0:02:22]}  Nb6 {[%clk 0:02:28]} 14. b3 {[%clk 0:02:16]}  Rc5 {[%clk 0:02:23]} 15. Bd3 {[%clk 0:02:13]}  Qd7 {[%clk 0:02:11]} 16. Qe2 {[%clk 0:02:10]}  Rfc8 {[%clk 0:02:10]} 17. Rfc1 {[%clk 0:02:10]}  h6 {[%clk 0:01:48]} 18. Qe1 {[%clk 0:02:10]}  Nh5 {[%clk 0:01:29]} 19. Bf1 {[%clk 0:02:07]}  R5c7 {[%clk 0:01:07]} 20. Be3 {[%clk 0:02:01]}  Na8 {[%clk 0:01:07]} 21. a4 {[%clk 0:01:55]}  b4 {[%clk 0:01:03]} 22. Na2 {[%clk 0:01:56]}  a5 {[%clk 0:01:03]} 23. Rxc7 {[%clk 0:01:55]}  Qxc7 {[%clk 0:01:00]} 24. Rc1 {[%clk 0:01:54]}  Qd8 {[%clk 0:00:59]} 25. Rc4 {[%clk 0:01:21]}  Ba6 {[%clk 0:00:55]} 26. Rxc8 {[%clk 0:01:20]}  Qxc8 {[%clk 0:00:56]} 27. Qc1 {[%clk 0:01:14]}  Qxc1 {[%clk 0:00:54]} 28. Nxc1 {[%clk 0:01:13]}  Bxf1 {[%clk 0:00:52]} 29. Kxf1 {[%clk 0:01:14]}  Nf6 {[%clk 0:00:50]} 30. Nd2 {[%clk 0:01:14]}  Ng4 {[%clk 0:00:44]} 31. Nc4 {[%clk 0:01:11]}  Nxh2+ {[%clk 0:00:38]} 32. Ke2 {[%clk 0:01:10]}  Ng4 {[%clk 0:00:39]} 33. Nxa5 {[%clk 0:01:08]}  Nxe3 {[%clk 0:00:36]} 34. fxe3 {[%clk 0:01:08]}  Bd8 {[%clk 0:00:35]} 35. Nc6 {[%clk 0:01:08]}  Bc7 {[%clk 0:00:33]} 36. Nxb4 {[%clk 0:01:06]}  h5 {[%clk 0:00:32]} 37. Ncd3 {[%clk 0:01:04]}  g5 {[%clk 0:00:31]} 38. Na6 {[%clk 0:01:04]}  Bb6 {[%clk 0:00:26]} 39. b4 {[%clk 0:01:02]}  g4 {[%clk 0:00:26]} 40. a5 {[%clk 0:01:02]}  Ba7 {[%clk 0:00:26]} 41. b5 {[%clk 0:01:02]}  h4 {[%clk 0:00:25]} 42. b6 {[%clk 0:00:59]}  Bxb6 {[%clk 0:00:23]} 43. axb6 {[%clk 0:00:59]}  Nxb6 {[%clk 0:00:24]} 44. Nc7 {[%clk 0:00:56]}  Nc4 {[%clk 0:00:21]} 45. Nf2 {[%clk 0:00:54]}  h3 {[%clk 0:00:20]} 46. gxh3 {[%clk 0:00:53]}  g3 {[%clk 0:00:16]} 47. Ng4 {[%clk 0:00:53]}  Kg7 {[%clk 0:00:13]} 48. Ne8+ {[%clk 0:00:48]}  Kg6 {[%clk 0:00:12]} 49. Kf3 {[%clk 0:00:36]}  Nd2+ {[%clk 0:00:06]} 50. Kxg3 {[%clk 0:00:36]}  Nxe4+ {[%clk 0:00:07]} 51. Kg2 {[%clk 0:00:33]}  f5 {[%clk 0:00:06]} 52. Nf2 {[%clk 0:00:33]}  Nc3 {[%clk 0:00:05]} 53. Nc7 {[%clk 0:00:29]}  e4 {[%clk 0:00:03]} 54. Nh1 {[%clk 0:00:19]}  Nd1 {[%clk 0:00:03]} 55. Ng3 {[%clk 0:00:10]}  Nxe3+ {[%clk 0:00:03]} 56. Kf2 {[%clk 0:00:07]}  Nc4 {[%clk 0:00:03]} 57. Ne2 {[%clk 0:00:05]}  Nb6 {[%clk 0:00:02]} 58. Nf4+ {[%clk 0:00:04]}  Kg5 {[%clk 0:00:03]} 59. Kg3 {[%clk 0:00:04]}  Nc4 {[%clk 0:00:02]} 60. Nce6+ {[%clk 0:00:05]}  Kf6 {[%clk 0:00:01]} 61. h4 {[%clk 0:00:05]}  Ne3 {[%clk 0:00:01]} 62. h5 {[%clk 0:00:05]}  Nxd5 {[%clk 0:00:01]} 63. Nxd5+ {[%clk 0:00:04]}  Kxe6 {[%clk 0:00:01]} 64. h6 {[%clk 0:00:05]}  Kf7 {[%clk 0:00:01]} 65. Ne3 {[%clk 0:00:04]}  Kg6 {[%clk 0:00:02]} 66. Nxf5 {[%clk 0:00:04]}  d5 {[%clk 0:00:02]} 67. Kf4 {[%clk 0:00:05]}  d4 {[%clk 0:00:02]} 68. Kxe4 {[%clk 0:00:05]}  d3 {[%clk 0:00:02]} 69. Kxd3 {[%clk 0:00:05]}  Kxf5 {[%clk 0:00:03]} 70. h7 {[%clk 0:00:06]}  Kg6 {[%clk 0:00:03]} 71. h8=Q {[%clk 0:00:07]} 1-0


[Site "https://www.chess.com"]

[Event "Titled Tuesday Blitz May 10 Early 2022"]
[White "Van den Dikkenberg, Erik"]
[Black "Matveeva, Olga"]
[WhiteFideId "1005880"]
[BlackFideId "24107018"]
[WhiteElo "2118"]
[BlackElo "2052"]
[Result "1-0"]
[Round "10"]
[TimeControl "180+1"]
[Date "2022.05.11"]
[WhiteClock "0:00:15"]
[BlackClock "0:00:04"]

1. e4 {[%clk 0:03:00]}  e6 {[%clk 0:03:00]} 2. d4 {[%clk 0:03:00]}  d5 {[%clk 0:03:00]} 3. Nc3 {[%clk 0:03:00]}  Nf6 {[%clk 0:03:00]} 4. Bg5 {[%clk 0:02:58]}  Bb4 {[%clk 0:02:59]} 5. e5 {[%clk 0:02:57]}  h6 {[%clk 0:02:59]} 6. exf6 {[%clk 0:02:55]}  hxg5 {[%clk 0:02:58]} 7. fxg7 {[%clk 0:02:56]}  Rg8 {[%clk 0:02:58]} 8. Qh5 {[%clk 0:02:51]}  Qf6 {[%clk 0:02:50]} 9. O-O-O {[%clk 0:02:44]}  Bxc3 {[%clk 0:02:48]} 10. bxc3 {[%clk 0:02:44]}  Qxg7 {[%clk 0:02:48]} 11. Nf3 {[%clk 0:02:43]}  Nc6 {[%clk 0:02:45]} 12. Bb5 {[%clk 0:02:42]}  Bd7 {[%clk 0:02:44]} 13. Bxc6 {[%clk 0:02:41]}  Bxc6 {[%clk 0:02:44]} 14. Ne5 {[%clk 0:02:37]}  Bb5 {[%clk 0:02:42]} 15. Rhe1 {[%clk 0:02:27]}  Rf8 {[%clk 0:02:35]} 16. g3 {[%clk 0:01:30]}  O-O-O {[%clk 0:02:33]} 17. Kb2 {[%clk 0:01:27]}  f6 {[%clk 0:02:28]} 18. Qg6 {[%clk 0:01:09]}  Qe7 {[%clk 0:01:49]} 19. Ng4 {[%clk 0:01:07]}  Bd7 {[%clk 0:01:43]} 20. Ne3 {[%clk 0:01:03]}  Qd6 {[%clk 0:01:41]} 21. Qg7 {[%clk 0:01:00]}  a5 {[%clk 0:01:35]} 22. a3 {[%clk 0:00:58]}  a4 {[%clk 0:01:34]} 23. Ka2 {[%clk 0:00:56]}  Bb5 {[%clk 0:01:32]} 24. Rb1 {[%clk 0:00:54]}  Bd7 {[%clk 0:01:30]} 25. Rb4 {[%clk 0:00:53]}  Qc6 {[%clk 0:01:29]} 26. Kb2 {[%clk 0:00:49]}  Rh8 {[%clk 0:01:08]} 27. Qxf6 {[%clk 0:00:48]}  Rxh2 {[%clk 0:01:07]} 28. Ng4 {[%clk 0:00:45]}  Rhh8 {[%clk 0:01:00]} 29. Ne5 {[%clk 0:00:45]}  Qd6 {[%clk 0:00:59]} 30. Nf7 {[%clk 0:00:45]}  Qf8 {[%clk 0:00:55]} 31. Qg6 {[%clk 0:00:34]}  Rg8 {[%clk 0:00:52]} 32. Qh5 {[%clk 0:00:34]}  Re8 {[%clk 0:00:49]} 33. Ne5 {[%clk 0:00:24]}  b6 {[%clk 0:00:31]} 34. Nxd7 {[%clk 0:00:23]}  Kxd7 {[%clk 0:00:31]} 35. Qg4 {[%clk 0:00:19]}  Qxf2 {[%clk 0:00:29]} 36. Re5 {[%clk 0:00:19]}  Kd6 {[%clk 0:00:21]} 37. Rxa4 {[%clk 0:00:19]}  Qf6 {[%clk 0:00:16]} 38. Qe2 {[%clk 0:00:17]}  g4 {[%clk 0:00:15]} 39. Qb5 {[%clk 0:00:17]}  Ra8 {[%clk 0:00:12]} 40. Qb4+ {[%clk 0:00:16]}  Kd7 {[%clk 0:00:12]} 41. Qb5+ {[%clk 0:00:16]}  Kd6 {[%clk 0:00:11]} 42. Qb4+ {[%clk 0:00:16]}  Kc6 {[%clk 0:00:10]} 43. Rxa8 {[%clk 0:00:15]}  Rxa8 {[%clk 0:00:09]} 44. a4 {[%clk 0:00:16]}  Kb7 {[%clk 0:00:09]} 45. Qb5 {[%clk 0:00:16]}  Ra5 {[%clk 0:00:08]} 46. Qd7 {[%clk 0:00:15]}  Qf2 {[%clk 0:00:05]} 47. Rxe6 {[%clk 0:00:15]}  Qf3 {[%clk 0:00:05]} 48. Qc6+ {[%clk 0:00:15]}  Kb8 {[%clk 0:00:04]} 49. Re8+ {[%clk 0:00:15]} 1-0


[Site "https://www.chess.com"]

[Event "Titled Tuesday Blitz May 10 Early 2022"]
[White "Vovk, Orest"]
[Black "Ivanisevic, Ivan"]
[WhiteFideId "14113490"]
[BlackFideId "912417"]
[WhiteElo "2203"]
[BlackElo "2495"]
[Result "0-1"]
[Round "10"]
[TimeControl "180+1"]
[Date "2022.05.11"]
[WhiteClock "0:00:05"]
[BlackClock "0:00:22"]

1. h4 {[%clk 0:03:00]}  d5 {[%clk 0:02:57]} 2. h5 {[%clk 0:03:01]}  e5 {[%clk 0:02:56]} 3. h6 {[%clk 0:03:01]}  Nc6 {[%clk 0:02:56]} 4. hxg7 {[%clk 0:02:54]}  Bxg7 {[%clk 0:02:57]} 5. d3 {[%clk 0:02:52]}  Be6 {[%clk 0:02:51]} 6. g3 {[%clk 0:02:49]}  Qe7 {[%clk 0:02:45]} 7. Bg2 {[%clk 0:02:49]}  O-O-O {[%clk 0:02:44]} 8. c3 {[%clk 0:02:49]}  f5 {[%clk 0:02:44]} 9. Qa4 {[%clk 0:02:48]}  e4 {[%clk 0:02:44]} 10. d4 {[%clk 0:02:45]}  Kb8 {[%clk 0:02:34]} 11. Nh3 {[%clk 0:02:41]}  Nf6 {[%clk 0:02:31]} 12. Nf4 {[%clk 0:02:40]}  Nd7 {[%clk 0:02:15]} 13. Qa3 {[%clk 0:02:31]}  Qe8 {[%clk 0:02:07]} 14. Nxe6 {[%clk 0:02:29]}  Qxe6 {[%clk 0:02:07]} 15. Bf4 {[%clk 0:02:30]}  Nb6 {[%clk 0:02:06]} 16. Nd2 {[%clk 0:02:28]}  h5 {[%clk 0:02:05]} 17. e3 {[%clk 0:02:24]}  Bh6 {[%clk 0:01:59]} 18. Bxh6 {[%clk 0:02:20]}  Rxh6 {[%clk 0:02:00]} 19. Rh4 {[%clk 0:02:20]}  Ne7 {[%clk 0:01:54]} 20. O-O-O {[%clk 0:02:10]}  Ng6 {[%clk 0:01:54]} 21. Rh3 {[%clk 0:02:08]}  h4 {[%clk 0:01:53]} 22. Rdh1 {[%clk 0:02:07]}  Rdh8 {[%clk 0:01:53]} 23. Bf1 {[%clk 0:01:54]}  Qf6 {[%clk 0:01:43]} 24. Qc5 {[%clk 0:01:43]}  Nf8 {[%clk 0:01:33]} 25. gxh4 {[%clk 0:01:28]}  Ne6 {[%clk 0:01:29]} 26. Qb5 {[%clk 0:01:23]}  a6 {[%clk 0:01:23]} 27. Qb4 {[%clk 0:01:10]}  Rxh4 {[%clk 0:01:22]} 28. Rxh4 {[%clk 0:01:05]}  Rxh4 {[%clk 0:01:23]} 29. Rxh4 {[%clk 0:00:52]}  Qxh4 {[%clk 0:01:24]} 30. a4 {[%clk 0:00:52]}  Ka7 {[%clk 0:00:53]} 31. a5 {[%clk 0:00:47]}  Nc8 {[%clk 0:00:51]} 32. Qb3 {[%clk 0:00:45]}  c6 {[%clk 0:00:39]} 33. c4 {[%clk 0:00:44]}  Nc7 {[%clk 0:00:39]} 34. cxd5 {[%clk 0:00:41]}  Nxd5 {[%clk 0:00:40]} 35. Bc4 {[%clk 0:00:39]}  Nce7 {[%clk 0:00:40]} 36. Qa3 {[%clk 0:00:33]}  Qxf2 {[%clk 0:00:38]} 37. Qc5+ {[%clk 0:00:32]}  Ka8 {[%clk 0:00:36]} 38. Bxd5 {[%clk 0:00:30]}  Nxd5 {[%clk 0:00:37]} 39. Qf8+ {[%clk 0:00:30]}  Ka7 {[%clk 0:00:37]} 40. Qc5+ {[%clk 0:00:30]}  Kb8 {[%clk 0:00:37]} 41. Qf8+ {[%clk 0:00:28]}  Kc7 {[%clk 0:00:36]} 42. Qg7+ {[%clk 0:00:24]}  Kd8 {[%clk 0:00:35]} 43. Qxb7 {[%clk 0:00:16]}  Nxe3 {[%clk 0:00:28]} 44. Qb8+ {[%clk 0:00:09]}  Ke7 {[%clk 0:00:27]} 45. Qc7+ {[%clk 0:00:10]}  Kf8 {[%clk 0:00:23]} 46. Qd8+ {[%clk 0:00:08]}  Kf7 {[%clk 0:00:24]} 47. Qd7+ {[%clk 0:00:08]}  Kg6 {[%clk 0:00:23]} 48. Qxc6+ {[%clk 0:00:08]}  Kg5 {[%clk 0:00:23]} 49. Nxe4+ {[%clk 0:00:05]}  fxe4 {[%clk 0:00:23]} 50. Qc5+ {[%clk 0:00:05]}  Kg4 {[%clk 0:00:21]} 51. Kb1 {[%clk 0:00:05]}  Qf1+ {[%clk 0:00:20]} 52. Ka2 {[%clk 0:00:05]}  Qc4+ {[%clk 0:00:20]} 53. Qxc4 {[%clk 0:00:05]}  Nxc4 {[%clk 0:00:21]} 54. Kb3 {[%clk 0:00:05]}  Nd6 {[%clk 0:00:22]} 55. Kc3 {[%clk 0:00:05]}  Kf3 {[%clk 0:00:22]} 56. d5 {[%clk 0:00:05]}  e3 {[%clk 0:00:22]} 0-1


[Site "https://www.chess.com"]